fUSD/lending_fUSD_20260512
["ID","MTS","AMOUNT","RATE_DAILY","PERIOD"]
[422128419,1778598986000,-160.6099084,0.00032877,60]
[422128413,1778598986000,-930.0,0.00032658,30]
[422128417,1778598986000,-165.0,0.00032666,30]
[422128411,1778598986000,-158.0,0.00032658,30]
[422128408,1778598986000,-156.29,0.00032498,30]
[422128409,1778598986000,-155.0,0.00032658,30]
[422128407,1778598986000,-234.19,0.00032032,30]
[422128410,1778598986000,-154.0,0.00032658,30]
[422128404,1778598986000,-214.86625456,0.00032,30]
[422128406,1778598986000,-967.6,0.00032032,30]
[422128405,1778598986000,-208.16996645,0.00032,120]
[422128403,1778598986000,-643.0,0.00032,120]
[422128420,1778598986000,-160.37,0.000329,30]
[422128412,1778598986000,-396.0,0.00032658,30]
[422128421,1778598986000,-197.71,0.000329,30]
[422128422,1778598986000,-1082749.05891753,0.00033,60]
[422128423,1778598986000,-5149.61484915,0.00033,30]
[422128441,1778598986000,-41298.0,0.00034267,60]
[422128439,1778598986000,-967.6,0.00034226,30]
[422128440,1778598986000,-234.19,0.00034226,30]
[422128436,1778598986000,-165.0,0.00033666,30]
[422128438,1778598986000,-41298.0,0.00033845,60]
[422128435,1778598986000,-301.0,0.00033658,30]
[422128437,1778598986000,-173.0,0.00033666,30]
[422128434,1778598986000,-154.0,0.00033658,30]
[422128433,1778598986000,-152.0,0.00033658,30]
[422128442,1778598986000,-197.71,0.000344,30]
[422128430,1778598986000,-158.0,0.00033658,30]
[422128431,1778598986000,-396.0,0.00033658,30]
[422128429,1778598986000,-154.0,0.00033658,30]
[422128428,1778598986000,-155.0,0.00033658,30]
[422128427,1778598986000,-151.06936244,0.000336,120]
[422128426,1778598986000,-41298.0,0.00033422,60]
[422128425,1778598986000,-258.91,0.00033118,30]
[422128424,1778598986000,-208.16996645,0.00033,120]
[422128432,1778598986000,-930.0,0.00033658,30]
[422128454,1778598987000,-18460.5959192,0.00035,60]
[422128456,1778598987000,-9665.72364849,0.00035,120]
[422128459,1778598987000,-152.43,0.00035225,120]
[422128458,1778598987000,-41298.0,0.00035112,60]
[422128457,1778598987000,-330.0,0.00035046,37]
[422128453,1778598987000,-160.6099084,0.00034932,60]
[422128455,1778598987000,-202.30578908,0.00035,120]
[422128451,1778598987000,-173.0,0.00034666,30]
[422128448,1778598987000,-154.0,0.00034658,30]
[422128450,1778598987000,-165.0,0.00034666,30]
[422128449,1778598987000,-301.0,0.00034658,30]
[422128447,1778598987000,-152.0,0.00034658,30]
[422128446,1778598987000,-930.0,0.00034658,30]
[422128443,1778598987000,-155.0,0.00034658,30]
[422128445,1778598987000,-396.0,0.00034658,30]
[422128444,1778598987000,-158.0,0.00034658,30]
[422128461,1778598987000,-41298.0,0.00035535,60]
[422128452,1778598987000,-41298.0,0.0003469,60]
[422128460,1778598987000,-383.38,0.00035503,30]
[422128482,1778598987000,-234.19,0.0003642,30]
[422128464,1778598987000,-390.37,0.00035616,30]
[422128462,1778598987000,-250.0,0.00035616,120]
[422128479,1778598987000,-156.29,0.00036287,30]
[422128480,1778598987000,-41298.0,0.0003638,60]
[422128478,1778598987000,-4114.75,0.0003628,30]
[422128477,1778598987000,-250.0,0.00036164,120]
[422128475,1778598987000,-11396.11589881,0.00036,60]
[422128476,1778598987000,-151.0,0.00036153,30]
[422128474,1778598987000,-41298.0,0.00035957,60]
[422128472,1778598987000,-165.0,0.00035666,30]
[422128481,1778598987000,-967.6,0.0003642,30]
[422128471,1778598987000,-301.0,0.00035658,30]
[422128470,1778598987000,-154.0,0.00035658,30]
[422128469,1778598987000,-152.0,0.00035658,30]
[422128467,1778598987000,-396.0,0.00035658,30]
[422128468,1778598987000,-930.0,0.00035658,30]
[422128465,1778598987000,-155.0,0.00035658,30]
[422128466,1778598987000,-158.0,0.00035658,30]
[422128463,1778598987000,-1983.18,0.00035616,30]
[422128473,1778598987000,-173.0,0.00035666,30]
[422128493,1778598988000,-150.14,0.0003669,30]
[422128494,1778598988000,-250.0,0.00036712,120]
[422128499,1778598988000,-160.6099084,0.00036986,60]
[422128496,1778598988000,-595.59084299,0.00036826,95]
[422128497,1778598988000,-596.11980636,0.00036845,95]
[422128492,1778598988000,-173.0,0.00036666,30]
[422128495,1778598988000,-41298.0,0.00036802,60]
[422128491,1778598988000,-165.0,0.00036666,30]
[422128487,1778598988000,-930.0,0.00036658,30]
[422128489,1778598988000,-154.0,0.00036658,30]
[422128488,1778598988000,-152.0,0.00036658,30]
[422128486,1778598988000,-396.0,0.00036658,30]
[422128498,1778598988000,-150.0,0.000369,30]
[422128485,1778598988000,-158.0,0.00036658,30]
[422128483,1778598988000,-181.85213197,0.00036541,120]
[422128484,1778598988000,-155.0,0.00036658,30]
[422128490,1778598988000,-301.0,0.00036658,30]
[422128500,1778598988000,-497.961043,0.00037,120]
[422128517,1778598988000,-158.82843331,0.00038329,120]
[422128501,1778598988000,-170.54795026,0.000372,120]
[422128520,1778598988000,-151.0,0.00038356,30]
[422128518,1778598988000,-250.0,0.00038356,120]
[422128519,1778598988000,-151.0,0.00038356,30]
[422128514,1778598988000,-10000.0,0.000382,30]
[422128516,1778598988000,-197.71,0.000383,30]
[422128515,1778598988000,-150.14,0.0003822,60]
[422128513,1778598988000,-151.0,0.00038125,30]
[422128512,1778598988000,-275.32714793,0.000381,33]
[422128502,1778598988000,-41298.0,0.00037224,60]
[422128511,1778598988000,-1384.347,0.0003809,50]
[422128509,1778598988000,-197.71,0.00038,30]
[422128505,1778598988000,-383.38,0.0003744,30]
[422128508,1778598988000,-250.0,0.00037808,120]
[422128506,1778598988000,-41298.0,0.00037647,60]
[422128507,1778598988000,-1444.0,0.00037753,120]
[422128504,1778598988000,-330.0,0.00037303,44]
[422128503,1778598988000,-250.0,0.0003726,120]
[422128510,1778598988000,-41298.0,0.00038069,60]
[422128531,1778598989000,-456.29,0.00038805,120]
[422128532,1778598989000,-1000.0,0.00038827,120]
[422128537,1778598989000,-160.6099084,0.00039041,60]
[422128534,1778598989000,-41298.0,0.00038914,120]
[422128536,1778598989000,-1329.16559567,0.00039,120]
[422128533,1778598989000,-250.0,0.00038904,120]
[422128535,1778598989000,-330.0,0.00038953,55]
[422128530,1778598989000,-180.49,0.0003866,30]
[422128522,1778598989000,-151.0,0.00038356,30]
[422128528,1778598989000,-967.6,0.00038614,30]
[422128527,1778598989000,-41298.0,0.00038492,120]
[422128526,1778598989000,-48463.4298,0.00038476,30]
[422128525,1778598989000,-1182.61,0.00038356,120]
[422128524,1778598989000,-752.32,0.00038356,120]
[422128523,1778598989000,-151.0,0.00038356,30]
[422128521,1778598989000,-151.0,0.00038356,30]
[422128538,1778598989000,-197.71,0.000391,30]
[422128529,1778598989000,-234.19,0.00038614,30]
[422128541,1778598989000,-41298.0,0.00039337,120]
[422128540,1778598989000,-1815.08,0.00039329,120]
[422128559,1778598989000,-598.54834013,0.00039999,31]
[422128539,1778598989000,-227.23986923,0.000391,30]
[422128560,1778598989000,-500.0,0.00039999,31]
[422128558,1778598989000,-500.0,0.00039999,31]
[422128557,1778598989000,-500.0,0.00039999,31]
[422128556,1778598989000,-500.0,0.00039999,31]
[422128555,1778598989000,-500.0,0.00039999,31]
[422128553,1778598989000,-492.55486292,0.00039999,31]
[422128550,1778598989000,-197.71,0.000398,30]
[422128552,1778598989000,-1815.17,0.00039983,120]
[422128554,1778598989000,-178.11709324,0.00039999,31]
[422128549,1778598989000,-41298.0,0.00039759,120]
[422128551,1778598989000,-163.2,0.000399,120]
[422128542,1778598989000,-383.38,0.00039378,30]
[422128544,1778598989000,-437.518669,0.000395,30]
[422128545,1778598989000,-10000.0,0.000395,30]
[422128543,1778598989000,-250.0,0.00039452,120]
[422128546,1778598989000,-1815.17,0.00039656,120]
[422128548,1778598989000,-150.14,0.0003975,120]
[422128547,1778598989000,-300.0,0.00039726,120]
[422128571,1778598990000,-500.0,0.00039999,31]
[422128581,1778598990000,-300.0,0.00039999,31]
[422128577,1778598990000,-500.0,0.00039999,31]
[422128575,1778598990000,-500.0,0.00039999,31]
[422128576,1778598990000,-625.2730605,0.00039999,31]
[422128574,1778598990000,-500.0,0.00039999,31]
[422128572,1778598990000,-500.0,0.00039999,31]
[422128573,1778598990000,-500.0,0.00039999,31]
[422128570,1778598990000,-500.0,0.00039999,31]
[422128579,1778598990000,-500.0,0.00039999,31]
[422128568,1778598990000,-500.0,0.00039999,31]
[422128567,1778598990000,-500.0,0.00039999,31]
[422128566,1778598990000,-620.41167211,0.00039999,31]
[422128563,1778598990000,-500.0,0.00039999,31]
[422128564,1778598990000,-500.0,0.00039999,31]
[422128565,1778598990000,-564.35769898,0.00039999,31]
[422128562,1778598990000,-500.0,0.00039999,31]
[422128561,1778598990000,-500.0,0.00039999,31]
[422128569,1778598990000,-485.04274657,0.00039999,31]
[422128578,1778598990000,-447.07153927,0.00039999,31]
[422128600,1778598990000,-330.0,0.00040161,71]
[422128582,1778598990000,-382.25271723,0.00039999,31]
[422128580,1778598990000,-500.0,0.00039999,31]
[422128599,1778598990000,-156.4,0.00040076,30]
[422128595,1778598990000,-477.23,0.0004,120]
[422128597,1778598990000,-250.0,0.0004,120]
[422128598,1778598990000,-1000.0,0.00040061,120]
[422128596,1778598990000,-7745.44,0.0004,120]
[422128594,1778598990000,-851.59,0.0004,120]
[422128592,1778598990000,-4447.508195,0.0004,56]
[422128593,1778598990000,-1201.0,0.0004,30]
[422128601,1778598990000,-41303.0,0.00040182,120]
[422128590,1778598990000,-55000.0,0.0004,90]
[422128589,1778598990000,-19994.10408148,0.0004,120]
[422128586,1778598990000,-114423.49527695,0.0004,120]
[422128587,1778598990000,-50000.0,0.0004,30]
[422128588,1778598990000,-308.5900429,0.0004,30]
[422128585,1778598990000,-492.512,0.0004,120]
[422128583,1778598990000,-20355.64576101,0.0004,60]
[422128584,1778598990000,-12499.35775415,0.0004,60]
[422128591,1778598990000,-156.0,0.0004,30]
[422128618,1778598991000,-180.54,0.00040633,30]
[422128615,1778598991000,-1091.35505522,0.0004049,50]
[422128614,1778598991000,-1023.45633456,0.0004049,50]
[422128611,1778598991000,-1105.10720855,0.0004049,50]
[422128613,1778598991000,-1104.42665951,0.0004049,50]
[422128612,1778598991000,-1042.71891842,0.0004049,50]
[422128610,1778598991000,-1017.26720696,0.0004049,50]
[422128605,1778598991000,-202.5,0.0004029,60]
[422128607,1778598991000,-1815.17,0.0004031,120]
[422128609,1778598991000,-216.98009403,0.00040356,60]
[422128606,1778598991000,-2921.4,0.0004029,60]
[422128604,1778598991000,-4625.03,0.0004029,60]
[422128603,1778598991000,-493.49,0.0004029,60]
[422128602,1778598991000,-1902.32,0.0004029,60]
[422128619,1778598991000,-1815.17,0.00040637,120]
[422128608,1778598991000,-500.0,0.00040356,60]
[422128620,1778598991000,-1018.42,0.000408,90]
[422128616,1778598991000,-250.0,0.00040547,120]
[422128621,1778598991000,-46804.0,0.00040854,120]
[422128637,1778598991000,-151.0,0.00041096,120]
[422128636,1778598991000,-151.0,0.00041096,120]
[422128635,1778598991000,-1562.0,0.00041096,120]
[422128633,1778598991000,-330.0,0.00041045,89]
[422128634,1778598991000,-250.0,0.00041095,120]
[422128632,1778598991000,-1448.6,0.00041041,120]
[422128630,1778598991000,-200.0,0.00041,120]
[422128631,1778598991000,-761.89,0.00041,120]
[422128617,1778598991000,-60700.77787497,0.0004056,120]
[422128628,1778598991000,-197.71,0.00041,30]
[422128627,1778598991000,-2000.0,0.00041,60]
[422128625,1778598991000,-15040.39620745,0.00041,30]
[422128626,1778598991000,-1001339.59,0.00041,120]
[422128638,1778598991000,-151.0,0.00041096,120]
[422128624,1778598991000,-1815.17,0.00040964,120]
[422128622,1778598991000,-10000.0,0.000409,30]
[422128623,1778598991000,-280647.0,0.0004095,60]
[422128629,1778598991000,-1743.88245732,0.00041,30]
[422128649,1778598992000,-499.931776,0.00041096,120]
[422128650,1778598992000,-499.931776,0.00041096,120]
[422128653,1778598992000,-499.931776,0.00041096,120]
[422128654,1778598992000,-499.931776,0.00041096,120]
[422128655,1778598992000,-499.931776,0.00041096,120]
[422128651,1778598992000,-499.931776,0.00041096,120]
[422128652,1778598992000,-499.931776,0.00041096,120]
[422128648,1778598992000,-499.931776,0.00041096,120]
[422128642,1778598992000,-151.0,0.00041096,120]
[422128646,1778598992000,-499.931776,0.00041096,120]
[422128645,1778598992000,-232.326994,0.00041096,120]
[422128644,1778598992000,-151.0,0.00041096,120]
[422128641,1778598992000,-151.0,0.00041096,120]
[422128643,1778598992000,-151.0,0.00041096,120]
[422128640,1778598992000,-151.0,0.00041096,120]
[422128639,1778598992000,-151.0,0.00041096,120]
[422128656,1778598992000,-499.931776,0.00041096,120]
[422128647,1778598992000,-499.931776,0.00041096,120]
[422128659,1778598992000,-499.931776,0.00041096,120]
[422128660,1778598992000,-499.931776,0.00041096,120]
[422128657,1778598992000,-499.931776,0.00041096,120]
[422128678,1778598992000,-226.128836,0.00041096,120]
[422128675,1778598992000,-151.0,0.00041096,120]
[422128674,1778598992000,-226.128836,0.00041096,120]
[422128676,1778598992000,-226.128836,0.00041096,120]
[422128672,1778598992000,-226.128836,0.00041096,120]
[422128671,1778598992000,-226.128836,0.00041096,120]
[422128673,1778598992000,-226.128836,0.00041096,120]
[422128670,1778598992000,-226.128836,0.00041096,120]
[422128669,1778598992000,-226.128836,0.00041096,120]
[422128677,1778598992000,-151.0,0.00041096,120]
[422128667,1778598992000,-226.128836,0.00041096,120]
[422128668,1778598992000,-226.128836,0.00041096,120]
[422128661,1778598992000,-499.931776,0.00041096,120]
[422128663,1778598992000,-499.931776,0.00041096,120]
[422128658,1778598992000,-499.931776,0.00041096,120]
[422128664,1778598992000,-499.931776,0.00041096,120]
[422128666,1778598992000,-226.128836,0.00041096,120]
[422128665,1778598992000,-499.931767,0.00041096,120]
[422128662,1778598992000,-499.931776,0.00041096,120]
[422128694,1778598993000,-226.128836,0.00041096,120]
[422128693,1778598993000,-151.0,0.00041096,120]
[422128691,1778598993000,-151.0,0.00041096,120]
[422128692,1778598993000,-226.128836,0.00041096,120]
[422128690,1778598993000,-226.128836,0.00041096,120]
[422128689,1778598993000,-151.0,0.00041096,120]
[422128688,1778598993000,-226.128836,0.00041096,120]
[422128687,1778598993000,-151.0,0.00041096,120]
[422128685,1778598993000,-151.0,0.00041096,120]
[422128682,1778598993000,-226.128836,0.00041096,120]
[422128683,1778598993000,-151.0,0.00041096,120]
[422128684,1778598993000,-226.128836,0.00041096,120]
[422128681,1778598993000,-151.0,0.00041096,120]
[422128679,1778598993000,-151.0,0.00041096,120]
[422128680,1778598993000,-226.128836,0.00041096,120]
[422128695,1778598993000,-151.0,0.00041096,120]
[422128686,1778598993000,-226.128836,0.00041096,120]
[422128696,1778598993000,-226.128836,0.00041096,120]
[422128711,1778598993000,-912.67522,0.00041096,120]
[422128700,1778598993000,-151.0,0.00041096,120]
[422128716,1778598993000,-912.67522,0.00041096,120]
[422128715,1778598993000,-912.67522,0.00041096,120]
[422128712,1778598993000,-912.67522,0.00041096,120]
[422128714,1778598993000,-912.67522,0.00041096,120]
[422128713,1778598993000,-912.67522,0.00041096,120]
[422128709,1778598993000,-912.67522,0.00041096,120]
[422128710,1778598993000,-912.67522,0.00041096,120]
[422128707,1778598993000,-912.67522,0.00041096,120]
[422128708,1778598993000,-912.67522,0.00041096,120]
[422128705,1778598993000,-912.67522,0.00041096,120]
[422128704,1778598993000,-280.560327,0.00041096,120]
[422128703,1778598993000,-151.0,0.00041096,120]
[422128701,1778598993000,-151.0,0.00041096,120]
[422128702,1778598993000,-151.0,0.00041096,120]
[422128698,1778598993000,-151.0,0.00041096,120]
[422128699,1778598993000,-151.0,0.00041096,120]
[422128706,1778598993000,-912.67522,0.00041096,120]
[422128697,1778598993000,-151.0,0.00041096,120]
[422128723,1778598994000,-912.67522,0.00041096,120]
[422128717,1778598994000,-912.67522,0.00041096,120]
[422128718,1778598994000,-912.67522,0.00041096,120]
[422128719,1778598994000,-912.67522,0.00041096,120]
[422128721,1778598994000,-912.67522,0.00041096,120]
[422128720,1778598994000,-912.67522,0.00041096,120]
[422128725,1778598994000,-151.0,0.00041096,120]
[422128724,1778598994000,-912.6752124,0.00041096,120]
[422128727,1778598994000,-151.0,0.00041096,120]
[422128726,1778598994000,-151.0,0.00041096,120]
[422128728,1778598994000,-151.0,0.00041096,120]
[422128729,1778598994000,151.0,0.00041096,120]
[422128730,1778598994000,251.877461,0.00041096,120]
[422128722,1778598994000,-912.67522,0.00041096,120]
[422128731,1778598995000,156.29,0.00026253,30]
[422128745,1778599038000,-761.91,0.000138,2]
[422128744,1778599038000,-164.4,0.00013737,2]
[422128742,1778599038000,-158.34,0.00013349,2]
[422128743,1778599038000,-1489.56,0.00013349,2]
[422128740,1778599038000,-387.52,0.00013097,2]
[422128741,1778599038000,-157.16,0.00013269,2]
[422128739,1778599038000,-157.16,0.00012619,2]
[422128736,1778599038000,-157.16,0.00011318,2]
[422128738,1778599038000,-500.0,0.00012247,2]
[422128734,1778599038000,-250.0,0.00010305,2]
[422128735,1778599038000,-157.16,0.00010668,2]
[422128733,1778599038000,-157.16,0.00010018,2]
[422128732,1778599038000,-157.16,9.368e-05,2]
[422128746,1778599038000,-1200.0,0.00014019,2]
[422128737,1778599038000,-157.16,0.00011968,2]
[422128747,1778599038000,-300.0,0.00014019,2]
[422128756,1778599038000,-150.0,0.00014067,2]
[422128748,1778599038000,-6750.6748,0.0001402,2]
[422128749,1778599038000,-300.0,0.0001402,2]
[422128763,1778599038000,-500.0,0.00014116,2]
[422128764,1778599038000,-500.0,0.00014116,2]
[422128762,1778599038000,-500.0,0.00014116,2]
[422128761,1778599038000,-155.52764373,0.00014116,2]
[422128760,1778599038000,-500.0,0.00014116,2]
[422128758,1778599038000,-4508.19515923,0.00014111,2]
[422128759,1778599038000,-576.64835313,0.00014116,2]
[422128755,1778599038000,-350.90569944,0.00014021,2]
[422128765,1778599038000,-500.0,0.00014116,2]
[422128753,1778599038000,-9787.79810344,0.00014021,2]
[422128754,1778599038000,-5420.19041982,0.00014021,2]
[422128752,1778599038000,-154.03704402,0.00014021,2]
[422128750,1778599038000,-2500.0,0.00014021,2]
[422128751,1778599038000,-2000.0,0.00014021,2]
[422128757,1778599038000,-330.0,0.0001411,3]
[422128767,1778599039000,-500.0,0.00014116,2]
[422128768,1778599039000,-571.29736169,0.00014116,2]
[422128769,1778599039000,-500.0,0.00014116,2]
[422128771,1778599039000,-392632.8754155,0.00014117,2]
[422128770,1778599039000,-500.0,0.00014116,2]
[422128766,1778599039000,-500.0,0.00014116,2]
[422128783,1778599093000,-802.0,0.00013947,2]
[422128784,1778599093000,-200.0,0.00013947,2]
[422128782,1778599093000,-150.0,0.00013947,2]
[422128781,1778599093000,-802.0,0.00013947,2]
[422128780,1778599093000,-150.0,0.00013947,2]
[422128777,1778599093000,-802.0,0.00013947,2]
[422128779,1778599093000,-150.0,0.00013947,2]
[422128776,1778599093000,-802.0,0.00013947,2]
[422128774,1778599093000,-300.0,0.00013946,2]
[422128775,1778599093000,-150.0,0.00013946,2]
[422128773,1778599093000,-1572.74,0.00013711,2]
[422128772,1778599093000,-1572.74,0.00013376,2]
[422128778,1778599093000,-802.0,0.00013947,2]
[422128789,1778599093000,-802.0,0.00013947,2]
[422128792,1778599093000,-500.0,0.00013947,2]
[422128785,1778599093000,-150.0,0.00013947,2]
[422128800,1778599093000,-802.0,0.00013947,2]
[422128786,1778599093000,-802.0,0.00013947,2]
[422128799,1778599093000,-500.0,0.00013947,2]
[422128797,1778599093000,-802.0,0.00013947,2]
[422128796,1778599093000,-802.0,0.00013947,2]
[422128795,1778599093000,-802.0,0.00013947,2]
[422128798,1778599093000,-802.0,0.00013947,2]
[422128794,1778599093000,-503.52293091,0.00013947,2]
[422128791,1778599093000,-802.0,0.00013947,2]
[422128790,1778599093000,-802.0,0.00013947,2]
[422128787,1778599093000,-802.0,0.00013947,2]
[422128788,1778599093000,-200.0,0.00013947,2]
[422128793,1778599093000,-500.0,0.00013947,2]
[422128808,1778599094000,-500.0,0.00013947,2]
[422128807,1778599094000,-500.0,0.00013947,2]
[422128810,1778599094000,-500.0,0.00013947,2]
[422128806,1778599094000,-802.0,0.00013947,2]
[422128805,1778599094000,-500.0,0.00013947,2]
[422128804,1778599094000,-500.0,0.00013947,2]
[422128801,1778599094000,-500.0,0.00013947,2]
[422128802,1778599094000,-500.0,0.00013947,2]
[422128809,1778599094000,-500.0,0.00013947,2]
[422128803,1778599094000,-500.0,0.00013947,2]
[422128812,1778599094000,-500.0,0.00013947,2]
[422128821,1778599094000,-813.0,0.00013947,2]
[422128814,1778599094000,-530.77702258,0.00013947,2]
[422128811,1778599094000,-500.0,0.00013947,2]
[422128823,1778599094000,-19825.28215668,0.00014021,2]
[422128819,1778599094000,-802.0,0.00013947,2]
[422128817,1778599094000,-802.0,0.00013947,2]
[422128822,1778599094000,-285.93788983,0.00014021,2]
[422128818,1778599094000,-802.0,0.00013947,2]
[422128816,1778599094000,-802.0,0.00013947,2]
[422128813,1778599094000,-802.0,0.00013947,2]
[422128815,1778599094000,-802.0,0.00013947,2]
[422128820,1778599094000,-802.0,0.00013947,2]
[422128829,1778599152000,-4831.2824,0.00014021,2]
[422128824,1778599152000,-200.0,0.00013349,2]
[422128825,1778599152000,-290.26,0.00013699,2]
[422128826,1778599152000,-69039.6967447,0.00013951,2]
[422128827,1778599152000,-2256.61348676,0.00014018,2]
[422128830,1778599152000,-2500.0,0.00014021,2]
[422128828,1778599152000,-2000.0,0.00014021,2]
[422128832,1778599152000,-1877.67502266,0.00014021,2]
[422128833,1778599152000,-3017.7961671,0.00014021,2]
[422128834,1778599152000,-233.93713296,0.00014021,2]
[422128836,1778599152000,-2256.61348676,0.00014116,2]
[422128835,1778599152000,-1572.74,0.00014045,2]
[422128837,1778599152000,-70561.69540304,0.00014117,2]
[422128831,1778599152000,-361.69015602,0.00014021,2]
[422128838,1778599206000,10000.0,0.00027397,120]
[422128839,1778599361000,713.48,0.00027397,120]
[422128840,1778599525000,162.53,6.826e-05,2]
[422128849,1778599612000,-99.41046989,9.913e-05,2]
[422128848,1778599612000,-162.53,9.012e-05,2]
[422128856,1778599831000,-362.03413514,9.913e-05,2]
[422128859,1778599832000,-250.07,0.00013034,2]
[422128858,1778599832000,-1021.31,0.00012887,2]
[422128860,1778599832000,-1021.31,0.00013209,2]
[422128862,1778599832000,-152.46,0.00013349,2]
[422128861,1778599832000,-2000.0,0.00013236,2]
[422128863,1778599832000,-162.53,0.00013384,2]
[422128864,1778599832000,-150.0,0.00013384,2]
[422128866,1778599832000,-1182.61104661,0.00013487,2]
[422128865,1778599832000,-300.0,0.00013487,2]
[422128867,1778599832000,-17.38895339,0.00013487,2]
[422128857,1778599832000,-162.53,0.00011198,2]
[422128868,1778599832000,-150.0,0.00013488,2]
[422128869,1778599832000,-103.61904661,0.00013488,2]
[422128878,1778599832000,-150.0,0.00013488,2]
[422128879,1778599832000,-81.71826983,0.00013488,2]
[422128876,1778599832000,-120.71996988,0.00013488,2]
[422128874,1778599832000,-173.4120625,0.00013488,2]
[422128877,1778599832000,-29.28003012,0.00013488,2]
[422128873,1778599832000,-0.62695337,0.00013488,2]
[422128871,1778599832000,-150.0,0.00013488,2]
[422128870,1778599832000,-46.38095339,0.00013488,2]
[422128872,1778599832000,-149.37304663,0.00013488,2]
[422128875,1778599832000,-266.69127012,0.00013488,2]
[422128902,1778599838000,-500.0,0.00013846,2]
[422128899,1778599838000,-150.0,0.00013845,2]
[422128897,1778599838000,-10121.23602522,0.00013821,2]
[422128896,1778599838000,-4878.17137782,0.00013821,2]
[422128903,1778599838000,-500.0,0.00013846,2]
[422128914,1778599838000,-265.89071662,0.0001392,2]
[422128904,1778599838000,-500.0,0.00013846,2]
[422128915,1778599838000,-163.8225931,0.0001392,2]
[422128913,1778599838000,-500.0,0.0001392,2]
[422128900,1778599838000,-500.0,0.00013846,2]
[422128905,1778599838000,-500.0,0.00013846,2]
[422128898,1778599838000,-550.89842949,0.00013841,2]
[422128891,1778599838000,-150.0,0.00013702,2]
[422128895,1778599838000,-150.0,0.00013809,2]
[422128892,1778599838000,-163.89,0.00013785,2]
[422128894,1778599838000,-150.0,0.00013787,2]
[422128893,1778599838000,-150.0,0.00013787,2]
[422128907,1778599838000,-500.0,0.00013846,2]
[422128888,1778599838000,-150.0,0.00013595,2]
[422128889,1778599838000,-152.0,0.00013641,2]
[422128890,1778599838000,-150.0,0.00013702,2]
[422128887,1778599838000,-881.67813116,0.00013531,2]
[422128886,1778599838000,-139.63186884,0.00013531,2]
[422128884,1778599838000,-68.28173017,0.00013488,2]
[422128901,1778599838000,-500.0,0.00013846,2]
[422128910,1778599838000,-1021.31,0.00013853,2]
[422128885,1778599838000,-150.0,0.00013488,2]
[422128911,1778599838000,-150.0,0.00013916,2]
[422128935,1778599838000,-500.0,0.0001392,2]
[422128938,1778599838000,-381.00008259,0.0001392,2]
[422128932,1778599838000,-500.0,0.0001392,2]
[422128933,1778599838000,-500.0,0.0001392,2]
[422128934,1778599838000,-500.0,0.0001392,2]
[422128936,1778599838000,-500.0,0.0001392,2]
[422128906,1778599838000,-500.0,0.00013846,2]
[422128931,1778599838000,-500.0,0.0001392,2]
[422128929,1778599838000,-9.69155181,0.0001392,2]
[422128930,1778599838000,-490.30844819,0.0001392,2]
[422128928,1778599838000,-258.8637235,0.0001392,2]
[422128926,1778599838000,-537.93328249,0.0001392,2]